Cogmind - Beta 15 @@@ ROGUE MODE // 2025.05.15 @ 18:55:38 Player: 0_0 Result: Destroyed by D-53 Grenadier with Mini Grenade Launcher Performance ------------- Evolutions (0) 0 Regions Visited (4) 800 Robots Destroyed (12) 60 Value Destroyed (337) 337 Prototype IDs (25) 500 Alien Tech Used (0) 0 Bonus (0) 0 TOTAL SCORE: 1697 Bonus ------- None Cogmind --------- Core Integrity 0/250 Matter 180/300 Energy 271/280 System Corruption 0% Temperature Cool (32) Movement Rolling (95) Location -9/Mines Parts ------- > --- POWER (1) -------- Cooled Ion Engine > --- PROPULSION (2) --- Compact Wheel Armored Wheel > --- UTILITY (2) ------ Small Storage Unit Sensor Array > --- WEAPON (2) ------- Guided Plasma Cannon > --- INVENTORY (8) ---- Improved Ion Engine Experimental Sensor Array Advanced Terrain Scan Processor Advanced Targeting Computer Improved Assault Rifle Mining Claw Peak State ------------ > --- POWER ------------ Cooled Ion Engine > --- PROPULSION ------- Armored Wheel Armored Wheel > --- UTILITY ---------- Small Storage Unit Sensor Array > --- WEAPON ----------- Guided Plasma Cannon Improved Assault Rifle > --- INVENTORY -------- Improved Ion Engine Compact Wheel Experimental Sensor Array Advanced Terrain Scan Processor Advanced Targeting Computer Makeshift Shrapnel Gun Proton Missile Launcher Mining Claw [Rating: 22] Favorites ----------- Power Light Deuterium Engine Engine Light Deuterium Engine Propulsion Armored Wheel Wheel Armored Wheel Utility Small Storage Unit Device Sensor Array Storage Small Storage Unit Weapon Improved Assault Rifle Energy Cannon Guided Plasma Cannon Ballistic Gun Improved Assault Rifle Launcher Proton Missile Launcher Build | -11 -10 -10 -10 -9 ------- Run | Yrd Mat Min Exi Min Slots Evolved . | . . . . . Power . | . . . . . Propulsion . | . . . . . Utility . | . . . . . Weapon . | . . . . . Parts Attached 21 | 6 7 2 . 6 Power 5 | 1 2 1 . 1 Engine 5 | 1 2 1 . 1 Core . | . . . . . Reactor . | . . . . . Propulsion 5 | 2 2 . . 1 Treads . | . . . . . Leg . | . . . . . Wheel 5 | 2 2 . . 1 Hover . | . . . . . Flight . | . . . . . Utility 2 | 1 1 . . . Device 1 | . 1 . . . Storage 1 | 1 . . . . Processor . | . . . . . Hackware . | . . . . . Protection . | . . . . . Artifact . | . . . . . Weapon 9 | 2 2 1 . 4 Energy Gun . | . . . . . Energy Cannon 1 | . . . . 1 Ballistic Gun 6 | 2 2 . . 2 Ballistic Cannon . | . . . . . Launcher 2 | . . 1 . 1 Special Weapon . | . . . . . Impact Weapon . | . . . . . Slashing Weapon . | . . . . . Piercing Weapon . | . . . . . Special Melee Weapon . | . . . . . Unidentified Prototypes 2 | . 2 . . . Parts Lost 3 | . . . . 3 Power . | . . . . . Propulsion 1 | . . . . 1 Utility . | . . . . . Weapon 2 | . . . . 2 Highest Loss Streak 3 | . . . . 3 To Critical Strikes . | . . . . . Average Backups 7 | . 5 8 8 8 Power 2 | . 2 2 2 1 Propulsion 1 | . 1 2 2 1 Utility 1 | . . . 1 1 Weapon 2 | . 1 2 3 3 Tool/Special . | . . . . . Unused Backups 8 | . 1 1 1 5 Power 2 | . . 1 . 1 Propulsion . | . . . . . Utility 3 | . . . . 3 Weapon 3 | . 1 . 1 1 Tool/Special . | . . . . . Average Slot Usage (%) 98 | . 87 100 100 99 Engine 14 | . 14 14 14 14 Wheel 28 | . 28 28 28 28 Device 12 | . 3 14 14 14 Storage 14 | . 14 14 14 14 Ballistic Gun 26 | . 27 26 28 25 Launcher 1 | . . 1 . 1 Peak Build Rating 22 | 6 16 16 17 22 Average Rating 16 | 4 12 15 16 18 On Entrance 11 | . 6 16 16 17 Naked Turns . | . . . . . Heaviest Build 27 | 12 20 20 17 27 Greatest Support 28 | 26 26 24 24 28 Greatest Overweight (x) 2 | . . . . 2 Average Overweight (x) . | . . . . . Largest Inventory Capacity 8 | 8 8 8 8 8 Average Capacity 7 | 6 8 8 8 8 Most Carried 8 | 1 8 8 8 8 Average Carried 7 | . 5 7 7 7 Final Capacity 8 | 8 8 8 8 8 Final Carried 8 | 1 8 8 8 6 Class Distribution -------------------- 100% | Mutant Dominant Class ---------------- Mutant | -10/Materials Mutant | -10/Mines Mutant | -10/Exiles Mutant | -9/Mines Resources | -11 -10 -10 -10 -9 ----------- Run | Yrd Mat Min Exi Min Matter Collected 620 | 225 123 127 . 145 Remotely . | . . . . . Salvage Created 462 | . 136 130 . 196 Parts 15 | . 10 4 . 1 Haulers Intercepted . | . . . . . Recyclers Shooed . | . . . . . Parts Field Recycled . | . . . . . Retrieved Matter . | . . . . . Parts Self-Destructed . | . . . . . Prevented . | . . . . . Kills | -11 -10 -10 -10 -9 ------- Run | Yrd Mat Min Exi Min Combat Hostiles Destroyed 16 | . 5 3 . 8 Guns 11 | . 5 1 . 5 Cannons 1 | . . . . 1 AOE 4 | . . 2 . 2 Classes Destroyed 5 | . 3 1 . 1 Watcher 2 | . 2 . . . Swarmer 3 | . 3 . . . Grunt 6 | . 2 2 . 2 Sentry 1 | . . 1 . . Assembled 6 | . . . . 6 Best Kill Streak 3 | . 3 2 . 2 Combat Bots Only 3 | . 3 2 . 2 Max Kills in Single Turn 1 | . 1 1 . 1 Gunslinging . | . . . . . Exploded 1 | . . 1 . 1 Melee . | . . . . . Uniques/NPCs Destroyed . | . . . . . Combat | -11 -10 -10 -10 -9 -------- Run | Yrd Mat Min Exi Min Hostile Shots Fired 99 | . 52 4 . 43 Missed 31 | . 18 3 . 10 Hits 68 | . 34 1 . 33 Melee 2 | . . . . 2 Projectile 66 | . 34 1 . 31 AOE 9 | . . . . 9 Critical Strikes 1 | . . . . 1 Damage Taken 1122 | . 303 12 . 807 Core 253 | . 97 . . 156 Absorbed by Shields . | . . . . . Core Remaining (%) 100 | 100 . . . . Volleys Fired 48 | . 18 5 . 25 Largest 2 | . 2 2 . 2 Hottest 120 | . 46 53 . 120 Shots Fired 94 | . 36 10 . 48 Gun 79 | . 36 7 . 36 Cannon 2 | . . . . 2 Launcher 13 | . . 3 . 10 Special . | . . . . . Kinetic 79 | . 36 7 . 36 Thermal 2 | . . . . 2 Explosive 3 | . . 3 . . Electromagnetic 10 | . . . . 10 Robot Hit Streak 12 | . 3 4 . 12 Robot Miss Streak 8 | . 4 1 . 8 Penetration Max . | . . . . . Secondary Targets 1 | . . . . 1 Max Gunslinging Chain 1 | . . . . 1 Shots Hit Robots 53 | . 15 7 . 31 Core Hits 32 | . 12 6 . 14 Critical Kills 1 | . . . . 1 Critical Parts Destroyed 2 | . . . . 2 Critical Strikes 3 | . . . . 3 Destroy 3 | . . . . 3 Melee Attacks . | . . . . . Impact . | . . . . . Slashing . | . . . . . Piercing . | . . . . . Sneak Attacks . | . . . . . Combat Hostiles . | . . . . . Follow-up Attacks . | . . . . . Damage Inflicted 1041 | . 173 217 . 651 Guns 652 | . 173 74 . 405 Cannons 77 | . . . . 77 Explosions 312 | . . 143 . 169 Melee . | . . . . . Ramming . | . . . . . Kinetic 652 | . 173 74 . 405 Thermal 77 | . . . . 77 Explosive 143 | . . 143 . . Electromagnetic 169 | . . . . 169 Impact . | . . . . . Slashing . | . . . . . Piercing . | . . . . . Highest Corruption . | . . . . . Average Corruption . | . . . . . Corruption Purged . | . . . . . Corruption Blocked . | . . . . . Overload Shots . | . . . . . Overflow Damage . | . . . . . Projectiles . | . . . . . Explosions . | . . . . . Melee . | . . . . . Knockbacks . | . . . . . Impact . | . . . . . Kinetic . | . . . . . Secondary . | . . . . . Self-Inflicted Damage 63 | . . . . 63 Shots 3 | . . . . 3 Rammed . | . . . . . Targets Rammed . | . . . . . Kicked . | . . . . . Crushed . | . . . . . Highest Temperature 369 | . 369 1 . 76 Average Temperature 110 | . 230 1 . 22 Received Heat Transfer 254 | . 60 6 . 188 Siege Activations . | . . . . . Martial Activations . | . . . . . Shielding Activations . | . . . . . Robots Disrupted . | . . . . . Combat Hostiles . | . . . . . Robots Corrupted . | . . . . . Combat Hostiles . | . . . . . Parts Fried . | . . . . . Impact Corruptions . | . . . . . Robots Melted . | . . . . . Combat Hostiles . | . . . . . Parts Melted 2 | . . 2 . . Heat Transferred 160 | . . . . 160 Parts Sabotaged . | . . . . . Parts Stolen . | . . . . . Parts Stripped . | . . . . . Power Chain Reactions . | . . . . . Alert | -11 -10 -10 -10 -9 ------- Run | Yrd Mat Min Exi Min Maximum Alert Level . | . . . . . Low Security (%) 100 | 100 100 100 . 100 Level 1 . | . . . . . Level 2 . | . . . . . Level 3 . | . . . . . Level 4 . | . . . . . Level 5 . | . . . . . High Security . | . . . . . Max Security . | . . . . . Peak Influence 97 | . 97 63 . 40 Initial 15 | . . 15 . . Average 14 | . 62 17 . 1 Influence Increases 286 | . 153 83 . 50 Destroy 0b10 Robot/C 200 | . 100 60 . 40 Destroy 0b10 Robot/NC 10 | . 10 . . . Destroy Leader 44 | . 24 10 . 10 Successful Hack 4 | . 4 . . . Destroy Structure 13 | . . 13 . . Lose Combat Pursuer 15 | . 15 . . . Influence Decreases 286 | . 114 122 . 50 Entered New Map 24 | . . 24 . . Time Decay 262 | . 114 98 . 50 Squads Dispatched 3 | . 1 1 . 1 Investigation 1 | . . 1 . . Extermination . | . . . . . Reinforcement 2 | . 1 . . 1 Assault . | . . . . . Garrison . | . . . . . Intercept . | . . . . . Searches Triggered . | . . . . . Construction Impeded 1 | . . . . 1 Haulers Reinforced . | . . . . . Active Scanning Responses . | . . . . . Cargo Convoy Interrupts . | . . . . . Stealth | -11 -10 -10 -10 -9 --------- Run | Yrd Mat Min Exi Min Distress Signals 2 | . 2 . . . Communications Jammed . | . . . . . Distress Signals . | . . . . . Times Spotted 22 | . 9 3 . 10 Peak Tracking Total 5 | . 5 2 . 2 Tactical Retreats 1 | . 1 . . . Traps | -11 -10 -10 -10 -9 ------- Run | Yrd Mat Min Exi Min Traps Triggered 1 | . . . . 1 Indirectly . | . . . . . Trap Hack Attempts . | . . . . . Triggered . | . . . . . Disarmed . | . . . . . Reprogrammed . | . . . . . Reused . | . . . . . Traps Extracted . | . . . . . Installed . | . . . . . Triggered . | . . . . . Machines | -11 -10 -10 -10 -9 ---------- Run | Yrd Mat Min Exi Min Machines Disabled . | . . . . . Max in Single Turn . | . . . . . Machines Repaired . | . . . . . Machines Dismantled . | . . . . . Machines Sabotaged . | . . . . . Overloaded Fab Kills . | . . . . . Hacking | -11 -10 -10 -10 -9 --------- Run | Yrd Mat Min Exi Min Machines Accessed 9 | . 2 1 5 1 Terminals 2 | . 2 . . . Fabricators . | . . . . . Repair Stations . | . . . . . Recycling Units . | . . . . . Scanalyzers . | . . . . . Garrison Access . | . . . . . Total Hacks 23 | . 4 1 17 1 Successful 20 | . 1 1 17 1 Failed 3 | . 3 . . . Catastrophic . | . . . . . Database Lockouts . | . . . . . Manual 4 | . 1 . 3 . Terminals 4 | . 4 . . . Fabricators . | . . . . . Repair Stations . | . . . . . Recycling Units . | . . . . . Scanalyzers . | . . . . . Garrison Access . | . . . . . Terminal Hacks 20 | . 1 1 17 1 Record 16 | . . . 16 . Open Door 2 | . . 1 . 1 Locate Traps 1 | . 1 . . . Proto ID Catalog 1 | . . . 1 . Fabricator Hacks . | . . . . . Repair Station Hacks . | . . . . . Recycling Unit Hacks . | . . . . . Scanalyzer . | . . . . . Garrison Access Hacks . | . . . . . Unauthorized Hacks . | . . . . . Terminals . | . . . . . Fabricators . | . . . . . Repair Stations . | . . . . . Recycling Units . | . . . . . Scanalyzers . | . . . . . Garrison Access . | . . . . . Data Cores Recovered . | . . . . . Used . | . . . . . Hacking Detections 1 | . 1 . . . Full Trace Events . | . . . . . Feedback Events . | . . . . . Feedback Blocked . | . . . . . Robot Schematics Acquired . | . . . . . Robots Built . | . . . . . Authchips . | . . . . . Time . | . . . . . Total Robot Build Rating . | . . . . . Part Schematics Acquired . | . . . . . Parts Built . | . . . . . Authchips . | . . . . . Time . | . . . . . Total Part Build Rating . | . . . . . Parts Repaired . | . . . . . Time . | . . . . . Parts Recycled . | . . . . . Recycled Matter . | . . . . . Retrieved Matter . | . . . . . Retrieved Components . | . . . . . Parts Scanalyzed . | . . . . . Part Schematics Acquired . | . . . . . Parts Damaged . | . . . . . Bothacking | -11 -10 -10 -10 -9 ------------ Run | Yrd Mat Min Exi Min Used RIF Installer . | . . . . . Robots Hacked . | . . . . . Non-combat . | . . . . . Combat . | . . . . . Robot Hacks Applied . | . . . . . Relay Couplers Released . | . . . . . Fabnet Peak Effective % . | . . . . . Robots Rewired . | . . . . . Allies Hacked . | . . . . . Hacks Repelled . | . . . . . Allies | -11 -10 -10 -10 -9 -------- Run | Yrd Mat Min Exi Min Total Allies . | . . . . . Largest Group . | . . . . . Highest-Rated Group . | . . . . . Highest-Rated Ally . | . . . . . Total Orders . | . . . . . Ally Attacks . | . . . . . Total Damage . | . . . . . Kills . | . . . . . Allies Corrupted . | . . . . . Allies Melted . | . . . . . Intel | -11 -10 -10 -10 -9 ------- Run | Yrd Mat Min Exi Min Active Infowar (turns) 2201 | . 58 381 758 1004 Sensors 2201 | . 58 381 758 1004 Robot Analysis Total . | . . . . . Derelict Logs Recovered 1 | . . 1 . . Drone Launches . | . . . . . Drone Recoveries . | . . . . . Exploration | -11 -10 -10 -10 -9 ------------- Run | Yrd Mat Min Exi Min Turns Passed 2439 | 42 254 381 758 1004 Spaces Moved 2150 | 37 154 374 838 747 Core 4 | 4 . . . . Treads . | . . . . . Legs . | . . . . . Wheels 2146 | 33 154 374 838 747 Hover . | . . . . . Flight . | . . . . . Fastest Speed 50 | 50 90 90 90 90 Average Speed 90 | 86 90 90 90 90 Slowest Speed 120 | 100 90 90 90 120 Overloaded Moves . | . . . . . Propulsion Burnouts . | . . . . . Robots Hopped . | . . . . . Potential Cave-ins . | . . . . . Cave-ins Triggered . | . . . . . Exploration Rate (%) 54 | 4 38 58 93 81 Regions Visited 4 Branch Regions 3 Pre-discovered Areas 1 | . . . 1 . Known Exits Taken . | . . . . . Unknown Exits Taken 4 | 1 1 1 1 . Scrap Searched 3 | . . 1 . 2 Spaces Dug . | . . . . . Terrain Destroyed 28 | . . 28 . . Melee . | . . . . . Projectile . | . . . . . AOE 28 | . . 28 . . Terrain Rammed . | . . . . . Walls Destroyed . | . . . . . Machines Disabled . | . . . . . Actions | -11 -10 -10 -10 -9 --------- Run | Yrd Mat Min Exi Min Total 2556 | 44 237 409 842 1024 Wait 297 | . 46 15 . 236 Move 2146 | 36 153 373 837 747 Hop . | . . . . . Pick Up 19 | 2 7 5 2 3 Fast Attach 11 | 5 4 1 . 1 Attach 3 | 1 . . . 2 Detach 3 | . 2 1 . . Swap 13 | . 4 3 . 6 Drop 15 | . 3 6 2 4 Fire 48 | . 18 5 . 25 Melee . | . . . . . Ram . | . . . . . Kick . | . . . . . Crush . | . . . . . Escape Stasis . | . . . . . Rewire 1 | . . . 1 . Trap . | . . . . . Miscellaneous . | . . . . . Route ------- -11/Scrapyard -10/Materials -10/Mines (discovered 2 exits: [*Mat] / *Exi) -10/Exiles (discovered 2 exits: *Min x2) -9/Mines (discovered 2 exits: [*Mat x2]) History --------- Turn | Location | Event 8 | -11/Scrapyard | Discovered new exit (range 16) 43 | -11/Scrapyard | Entered Materials 278 | -10/Materials | Discovered new exit (range 16) 297 | -10/Materials | Entered Mines 305 | -10/Mines | Discovered new exit (range 6) 317 | -10/Mines | Build established: Mutant 378 | -10/Mines | Deemed a non-threat by the Exiles lab entrance 378 | -10/Mines | Discovered new exit (range 5) 457 | -10/Mines | Joined a pair of Derelicts in attacking an 0b10 outpost 470 | -10/Mines | Learned Materials trap positions 544 | -10/Mines | Met a Derelict shopkeep closing up shop 678 | -10/Mines | Entered Exiles 678 | -10/Exiles | Found Exiles lab destroyed 830 | -10/Exiles | Opened EX-Vault 834 | -10/Exiles | Found Gui. Plasma Cannon 910 | -10/Exiles | Learned location of Zion (-7) 1214 | -10/Exiles | Discovered new exit (range 10) 1325 | -10/Exiles | Discovered new exit (range 15) 1436 | -10/Exiles | Entered Mines 1448 | -9/Mines | Core integrity fell below 50% 1706 | -9/Mines | Discovered new exit (range 8) 1718 | -9/Mines | Discovered new exit (range 5) 1728 | -9/Mines | A weapon hastily lodged in a ceiling crevice suddenly fell to the ground 1838 | -9/Mines | Found a damaged Exp. Sensor Array with a note attached 1842 | -9/Mines | Found Prototype Device 2117 | -9/Mines | Assembled infested the area 2122 | -9/Mines | Assisted by a Guerilla fighting off Assembled 2224 | -9/Mines | Met a Derelict who couldn't figure out how to use a Trap Extractor 2248 | -9/Mines | Core integrity fell below 20% 2440 | -9/Mines | Destroyed by D-53 Grenadier with Mini Grenade Launcher Last Messages --------------- 02251_ as-34463 destroyed. 02253_ Acquired 20 matter. 02311_ as-41138 destroyed. 02320_ U-05 Engineer lays Concrete. 02321_ as-25692 destroyed. 02321_ ALERT: Construction progress impeded, dispatching reinforcements to local area. 02327_ Acquired 10 matter. 02372_ Destroyed Asb. Hover Unit. 02372_ as-20819 destroyed. 02375_ Acquired 16 matter. 02376_ Acquired 3 matter. 02385_ The unstable cave ceiling collapses. 02427_ Proton Missile Launcher destroyed. 02428_ K-01 Serf cleans the Plasma Injector. 02431_ Plasma Injector explodes. 02431_ K-01 Serf destroyed. 02435_ Arm. Wheel destroyed. 02437_ The unstable cave ceiling collapses. 02438_ Mak. Shrapnel Gun destroyed. Map ----- +----------------------------------------------------+ | | | | | | | | | | | | | ??????????????????????????????????? | | ??????????????????????????????????? | | ?????????????????????##???????????? | | ????????????????????## ##?????????? | | ????????????????????# #####?????? | | ???????????????????## ##????? | | ??????????????????## """" #????? | | ??????????????????# """" ###### | | ??????????????????# """" | | ??????????????????## | | ???????????????????### ## ### | | ?????????????????????# ### #?# | | ?????????????????????# #?## #?# | | ????????####?????????# #??## ##?# | | ???????## ####??????# #???#####??# | | ??????## ##?????# #???????#### | | ?????## #?????# ####???##! | | ????## *####??# #???#%=< | | ????# =%k #??#### #???#=* | | ????# @ ## #####?# #???## | | ????# ## #?# #????#### | | ???# ###### #?# #???????# | | ???## ##??# #?# #???????? | | ???# *% #??# ### ######### | | ???## #??# | | ???## #??############## | | ??## d ;#???????????????# | | ??# d* ##?????????????## | | ??# ##???????????## | | ??## ##??????????# | | ???# ######?????# | | ???### # ### ####??# | | ?????## # #?### ##?# | | ??????#### # #???### #### | | ???????### # #?????## ### | | ???????# # #??###### ## | | ???????# # ###* #?## ## | | ???????# ## % ##?## ## | | ???????## ###### ???####### | | ????????## #????# ?????????## | | ?????????# ##???# ??????????## | | ?????????# ##??#% #???????????## | | ?????????## ##?# #????????????## | | ??????????## #?# ####??????????? | +----------------------------------------------------+ Best States ------------- Heat Dissipation 25 Energy Generation 14 Energy Capacity 280 Matter Stores 300 Matter Capacity 300 Sight Range 16 Robot Scan Range 14 Terrain Scan Density 10 Evasion (%) 42 Item Schematics ----------------- None Robot Schematics ------------------ None Fabricated ------------ Nothing Repaired ---------- Nothing Alien Tech Used ----------------- None Achievements -------------- None Challenges ------------ None Game ------ Seed WeaponPlatingCutter Manual? 0 Play Time 00:33:38 Cumulative 15.7 hours Start 2025.05.15 @ 16:01:38 End 2025.05.15 @ 18:55:38 Sessions 3 Manual Loads 0 Difficulty Rogue Special Mode None Game No. 32 Rogue 32 Adventurer 0 Explorer 0 Win Type - Total 0 Types 0/0/0/0/0/0/0/0/0/0 Lore% 22 Gallery% 16 Achievement% 18 Wizard Run 0 Options --------- Layout 1 ASCII 0 Keyboard 0 Movement Mouse Keybinds 0 Fullscreen 1 Font 32/SmallcapsGlow Map View 77x35 Zoom Use 0% Tactical HUD 1 Map Filters NONE Filters NONE Steam 1 RUN: fcf8b229-8465-4137-b1d7-eae10968b9ce